[Event "Live Chess"]
[Site "Chess.com"]
[Date "2023.05.20"]
[Round "-"]
[White "jusjoel"]
[Black "Bot_Boy"]
[Result "0-1"]
[WhiteElo "265"]
[BlackElo "332"]
[TimeControl "300"]
[EndTime "11:04:38 PDT"]
[Termination "Bot_Boy won on time"]

1. d4 {[%clk 0:04:55.8]} 1... d5 {[%clk 0:04:59.4]} 2. e3 {[%clk 0:04:50.7]}
2... Nc6 {[%clk 0:04:45.3]} 3. Bb5 {[%clk 0:04:41.9]} 3... Bd7 {[%clk
0:04:38.1]} 4. Qh5 {[%clk 0:04:26.7]} 4... Nf6 {[%clk 0:04:18.4]} 5. Qf3 {[%clk
0:04:07.1]} 5... Nb4 {[%clk 0:04:05.2]} 6. Bxd7+ {[%clk 0:04:00]} 6... Qxd7
{[%clk 0:03:59.8]} 7. Ne2 {[%clk 0:03:53.2]} 7... Nxc2+ {[%clk 0:03:57.1]} 8.
Kd2 {[%clk 0:03:35.8]} 8... Nxa1 {[%clk 0:03:40.1]} 9. Nbc3 {[%clk 0:03:19.9]}
9... e6 {[%clk 0:03:30.6]} 10. Nf4 {[%clk 0:03:17.3]} 10... Bb4 {[%clk 0:03:22]}
11. a3 {[%clk 0:03:09.4]} 11... Bxc3+ {[%clk 0:03:01.4]} 12. bxc3 {[%clk
0:03:04.9]} 12... Qa4 {[%clk 0:02:49.6]} 13. Bb2 {[%clk 0:03:01.9]} 13... Qc2+
{[%clk 0:02:39.2]} 14. Ke1 {[%clk 0:02:54.7]} 14... Nb3 {[%clk 0:02:31.7]} 15.
Kf1 {[%clk 0:02:46.4]} 15... Nd2+ {[%clk 0:02:26.7]} 16. Ke2 {[%clk 0:02:42.4]}
16... Nxf3+ {[%clk 0:02:21.8]} 17. Kxf3 {[%clk 0:02:37.2]} 17... g5 {[%clk
0:02:11.3]} 18. a4 {[%clk 0:02:10.4]} 18... gxf4 {[%clk 0:01:58.3]} 19. Ba3
{[%clk 0:01:54.8]} 19... fxe3 {[%clk 0:01:41.9]} 20. Rc1 {[%clk 0:01:41.2]}
20... Qe4+ {[%clk 0:01:32.9]} 0-1

[Event "Live Chess"]
[Site "Chess.com"]
[Date "2023.05.20"]
[Round "-"]
[White "BostonStrangler"]
[Black "BJAW87"]
[Result "1-0"]
[WhiteElo "2079"]
[BlackElo "1438"]
[TimeControl "300"]
[EndTime "11:04:45 PDT"]
[Termination "BostonStrangler won by resignation"]

1. Nf3 {[%clk 0:04:55.8]} 1... d5 {[%clk 0:04:58.9]} 2. g3 {[%clk 0:04:54.3]}
2... c5 {[%clk 0:04:58.1]} 3. Bg2 {[%clk 0:04:53.7]} 3... Nf6 {[%clk 0:04:54.7]}
4. c4 {[%clk 0:04:52.3]} 4... d4 {[%clk 0:04:50.9]} 5. b4 {[%clk 0:04:51]} 5...
b6 {[%clk 0:04:48.3]} 6. bxc5 {[%clk 0:04:43.5]} 6... Bb7 {[%clk 0:04:45.4]} 7.
Qa4+ {[%clk 0:04:34.5]} 7... Bc6 {[%clk 0:04:40.7]} 8. Qb3 {[%clk 0:04:02.4]}
8... bxc5 {[%clk 0:04:38.6]} 9. O-O {[%clk 0:03:59.9]} 9... Nbd7 {[%clk
0:03:47.7]} 10. d3 {[%clk 0:03:55.7]} 10... e5 {[%clk 0:03:46]} 11. Re1 {[%clk
0:03:39.3]} 11... Qb6 {[%clk 0:03:39.4]} 12. Nxe5 {[%clk 0:03:17.8]} 12... Bxg2
{[%clk 0:03:38]} 13. Nxd7 {[%clk 0:03:14]} 13... Kxd7 {[%clk 0:03:36.8]} 14.
Qxb6 {[%clk 0:03:11.2]} 14... axb6 {[%clk 0:03:36.7]} 15. Kxg2 {[%clk
0:03:10.4]} 15... h5 {[%clk 0:03:28.7]} 16. a4 {[%clk 0:03:05.9]} 16... h4
{[%clk 0:03:26.4]} 17. Bd2 {[%clk 0:03:03.8]} 17... hxg3 {[%clk 0:03:10.6]} 18.
fxg3 {[%clk 0:03:02.1]} 18... Ng4 {[%clk 0:03:09.4]} 19. h3 {[%clk 0:03:00.5]}
19... Ne3+ {[%clk 0:02:56.4]} 20. Bxe3 {[%clk 0:02:57.6]} 20... dxe3 {[%clk
0:02:55.8]} 21. Nc3 {[%clk 0:02:54.3]} 21... Bd6 {[%clk 0:02:53.7]} 22. Nd5
{[%clk 0:02:51.3]} 22... Rae8 {[%clk 0:02:50.1]} 23. Nxb6+ {[%clk 0:02:47.7]}
23... Kc6 {[%clk 0:02:49]} 24. Nd5 {[%clk 0:02:46.8]} 24... f5 {[%clk
0:02:18.8]} 25. Rf1 {[%clk 0:02:41.9]} 25... g6 {[%clk 0:02:13.9]} 26. a5 {[%clk
0:02:34]} 26... Rhf8 {[%clk 0:02:08.9]} 27. a6 {[%clk 0:02:28.9]} 27... g5
{[%clk 0:02:08.1]} 28. a7 {[%clk 0:02:23.3]} 28... f4 {[%clk 0:02:07.3]} 29.
gxf4 {[%clk 0:02:19.2]} 29... gxf4 {[%clk 0:02:07.2]} 30. Ra6+ {[%clk
0:02:05.9]} 30... Kb7 {[%clk 0:01:53]} 31. Rxd6 {[%clk 0:01:59.5]} 31... Rg8+
{[%clk 0:01:49]} 32. Kh2 {[%clk 0:01:57.5]} 32... Rg3 {[%clk 0:01:22.4]} 33.
Rb1+ {[%clk 0:01:46.9]} 33... Kxa7 {[%clk 0:01:20.7]} 34. Rd7+ {[%clk
0:01:42.2]} 34... Ka8 {[%clk 0:01:18.5]} 35. Nc7+ {[%clk 0:01:35.1]} 1-0

[Event "Live Chess"]
[Site "Chess.com"]
[Date "2023.05.20"]
[Round "-"]
[White "YF22Raptor"]
[Black "minenko-1958"]
[Result "0-1"]
[WhiteElo "1014"]
[BlackElo "1422"]
[TimeControl "300"]
[EndTime "11:04:47 PDT"]
[Termination "minenko-1958 won by resignation"]

1. e4 {[%clk 0:04:57.1]} 1... e5 {[%clk 0:04:58.7]} 2. Nf3 {[%clk 0:04:55.5]}
2... Nc6 {[%clk 0:04:55.2]} 3. d4 {[%clk 0:04:54.6]} 3... exd4 {[%clk
0:04:53.9]} 4. Bc4 {[%clk 0:04:53.5]} 4... h6 {[%clk 0:04:49.2]} 5. O-O {[%clk
0:04:51.7]} 5... Bc5 {[%clk 0:04:43.6]} 6. a3 {[%clk 0:04:49.5]} 6... a6 {[%clk
0:04:41.8]} 7. b4 {[%clk 0:04:48.2]} 7... Ba7 {[%clk 0:04:40.4]} 8. Qd3 {[%clk
0:04:43.9]} 8... b5 {[%clk 0:04:38]} 9. Bb3 {[%clk 0:04:42.4]} 9... Ne5 {[%clk
0:04:30.6]} 10. Nxe5 {[%clk 0:04:39.4]} 10... Qf6 {[%clk 0:04:02.1]} 11. Nf3
{[%clk 0:04:34.3]} 11... d6 {[%clk 0:03:57.1]} 12. Rd1 {[%clk 0:04:30.1]} 12...
Ne7 {[%clk 0:03:53.1]} 13. Nxd4 {[%clk 0:04:27.8]} 13... O-O {[%clk 0:03:43.4]}
14. Bb2 {[%clk 0:04:25.9]} 14... Bg4 {[%clk 0:03:28.1]} 15. f3 {[%clk
0:04:19.4]} 15... Bh5 {[%clk 0:03:22]} 16. Ra2 {[%clk 0:04:17.9]} 16... Bg6
{[%clk 0:03:20]} 17. Kf1 {[%clk 0:04:10]} 17... Qg5 {[%clk 0:03:14.1]} 18. Bc1
{[%clk 0:04:01.5]} 18... Qh5 {[%clk 0:03:11]} 19. c4 {[%clk 0:03:39.4]} 19...
Qxh2 {[%clk 0:03:06]} 20. cxb5 {[%clk 0:03:34.4]} 20... axb5 {[%clk 0:03:01.3]}
21. Be3 {[%clk 0:03:24.8]} 21... c6 {[%clk 0:02:52]} 22. Nd2 {[%clk 0:03:16.4]}
22... d5 {[%clk 0:02:50.1]} 23. Kf2 {[%clk 0:03:10.1]} 23... dxe4 {[%clk
0:02:44]} 24. fxe4 {[%clk 0:03:08.1]} 24... Qh4+ {[%clk 0:02:29.9]} 25. Kg1
{[%clk 0:02:56.3]} 25... Nd5 {[%clk 0:02:27.3]} 26. N2f3 {[%clk 0:02:51.2]}
26... Qxe4 {[%clk 0:02:20.1]} 27. Qxe4 {[%clk 0:02:49.7]} 27... Bxe4 {[%clk
0:02:18.5]} 28. Nxc6 {[%clk 0:02:41.3]} 28... Bxe3+ {[%clk 0:02:15.6]} 29. Kf1
{[%clk 0:02:36.3]} 29... Nc3 {[%clk 0:02:07]} 0-1

[Event "Live Chess"]
[Site "Chess.com"]
[Date "2023.05.20"]
[Round "-"]
[White "Ferrarifan27"]
[Black "onemoretime1975"]
[Result "1-0"]
[WhiteElo "2076"]
[BlackElo "1901"]
[TimeControl "300"]
[EndTime "11:04:59 PDT"]
[Termination "Ferrarifan27 won by checkmate"]

1. e4 {[%clk 0:04:59]} 1... e6 {[%clk 0:04:57.8]} 2. d4 {[%clk 0:04:57.9]} 2...
d5 {[%clk 0:04:56.6]} 3. Nc3 {[%clk 0:04:55.3]} 3... Nf6 {[%clk 0:04:52.9]} 4.
Bg5 {[%clk 0:04:52.5]} 4... Be7 {[%clk 0:04:51.1]} 5. e5 {[%clk 0:04:51]} 5...
Nfd7 {[%clk 0:04:50.1]} 6. Bxe7 {[%clk 0:04:49.5]} 6... Qxe7 {[%clk 0:04:48.5]}
7. Nf3 {[%clk 0:04:49.1]} 7... a6 {[%clk 0:04:46.9]} 8. Be2 {[%clk 0:04:45.6]}
8... c5 {[%clk 0:04:45.7]} 9. O-O {[%clk 0:04:43.3]} 9... Nc6 {[%clk 0:04:44.7]}
10. dxc5 {[%clk 0:04:36.4]} 10... Qxc5 {[%clk 0:04:39.8]} 11. Na4 {[%clk
0:04:30.3]} 11... Qa5 {[%clk 0:04:31]} 12. b3 {[%clk 0:04:22.7]} 12... Ncxe5
{[%clk 0:04:27.8]} 13. Qd4 {[%clk 0:04:08.7]} 13... Nxf3+ {[%clk 0:04:24.4]} 14.
Bxf3 {[%clk 0:04:07]} 14... O-O {[%clk 0:04:22.7]} 15. Rfe1 {[%clk 0:04:03.7]}
15... b5 {[%clk 0:04:12.6]} 16. Nb2 {[%clk 0:03:59.7]} 16... Qb6 {[%clk
0:04:07.2]} 17. Qh4 {[%clk 0:03:47.7]} 17... Bb7 {[%clk 0:03:55.5]} 18. Rad1
{[%clk 0:03:46]} 18... Rac8 {[%clk 0:03:36.2]} 19. Rd2 {[%clk 0:03:28.8]} 19...
Qa5 {[%clk 0:03:23.3]} 20. Red1 {[%clk 0:03:21.3]} 20... Qxa2 {[%clk 0:03:19.5]}
21. Nd3 {[%clk 0:03:16.6]} 21... Qa5 {[%clk 0:02:39.4]} 22. b4 {[%clk
0:03:03.8]} 22... Qd8 {[%clk 0:02:37]} 23. Qg3 {[%clk 0:03:01.5]} 23... Qf6
{[%clk 0:02:32.9]} 24. Nf4 {[%clk 0:02:57.4]} 24... Ne5 {[%clk 0:02:28.2]} 25.
Be2 {[%clk 0:02:52.9]} 25... Ng6 {[%clk 0:02:17.8]} 26. Nh5 {[%clk 0:02:47.2]}
26... Qh4 {[%clk 0:02:13.7]} 27. Qb3 {[%clk 0:02:29.7]} 27... Ne5 {[%clk
0:02:00]} 28. Qb2 {[%clk 0:02:18]} 28... f6 {[%clk 0:01:48]} 29. g3 {[%clk
0:02:15.5]} 29... Qg5 {[%clk 0:01:34.9]} 30. Nf4 {[%clk 0:02:11.4]} 30... Rc6
{[%clk 0:01:19.9]} 31. h4 {[%clk 0:01:47.2]} 31... Qh6 {[%clk 0:01:17.4]} 32.
Kf1 {[%clk 0:01:32.7]} 32... g5 {[%clk 0:01:11.9]} 33. Ng2 {[%clk 0:01:30.4]}
33... gxh4 {[%clk 0:01:07.4]} 34. Nxh4 {[%clk 0:01:28.9]} 34... Nc4 {[%clk
0:01:03.9]} 35. Bxc4 {[%clk 0:01:26.8]} 35... Rxc4 {[%clk 0:01:02.4]} 36. Rd4
{[%clk 0:01:20.5]} 36... Rfc8 {[%clk 0:00:57.7]} 37. Rxc4 {[%clk 0:01:16.9]}
37... Rxc4 {[%clk 0:00:53.9]} 38. Rd4 {[%clk 0:01:16.4]} 38... Rxd4 {[%clk
0:00:33.5]} 39. Qxd4 {[%clk 0:01:16.3]} 39... Qc1+ {[%clk 0:00:32.2]} 40. Kg2
{[%clk 0:01:14.4]} 40... e5 {[%clk 0:00:31.1]} 41. Qg4+ {[%clk 0:01:10]} 41...
Kh8 {[%clk 0:00:24.1]} 42. Qd7 {[%clk 0:01:04.8]} 42... Qxc2 {[%clk 0:00:19.4]}
43. Nf5 {[%clk 0:00:50.5]} 43... Qe4+ {[%clk 0:00:15.3]} 44. Kh2 {[%clk
0:00:44.5]} 44... Qg4 {[%clk 0:00:07.8]} 45. Qd8+ {[%clk 0:00:41.6]} 45... Qg8
{[%clk 0:00:04.5]} 46. Qxf6+ {[%clk 0:00:40.6]} 46... Qg7 {[%clk 0:00:02.5]} 47.
Qxg7# {[%clk 0:00:40.5]} 1-0

[Event "Live Chess"]
[Site "Chess.com"]
[Date "2023.05.20"]
[Round "-"]
[White "wot-not"]
[Black "Hussamalhaidar"]
[Result "1-0"]
[WhiteElo "1463"]
[BlackElo "1006"]
[TimeControl "300"]
[EndTime "11:05:16 PDT"]
[Termination "wot-not won on time"]

1. e4 {[%clk 0:04:59.1]} 1... Nc6 {[%clk 0:04:54.5]} 2. f4 {[%clk 0:04:58]} 2...
e5 {[%clk 0:04:52.3]} 3. Nf3 {[%clk 0:04:57.6]} 3... Nf6 {[%clk 0:04:48.1]} 4.
fxe5 {[%clk 0:04:55.8]} 4... Nxe4 {[%clk 0:04:45.1]} 5. d4 {[%clk 0:04:54.3]}
5... d5 {[%clk 0:04:36.7]} 6. Bd3 {[%clk 0:04:50.9]} 6... Bg4 {[%clk 0:04:26.7]}
7. O-O {[%clk 0:04:49.3]} 7... Qd7 {[%clk 0:04:02.3]} 8. c3 {[%clk 0:04:48.3]}
8... O-O-O {[%clk 0:03:54]} 9. b4 {[%clk 0:04:43.6]} 9... h5 {[%clk 0:03:42.5]}
10. Qa4 {[%clk 0:04:41]} 10... Kb8 {[%clk 0:03:21.7]} 11. Bf4 {[%clk 0:04:19.9]}
11... h4 {[%clk 0:03:13.3]} 12. Bxe4 {[%clk 0:04:03.4]} 12... dxe4 {[%clk
0:03:02.4]} 13. Ng5 {[%clk 0:04:01.5]} 13... Nxd4 {[%clk 0:02:33.7]} 14. Qxd7
{[%clk 0:03:55.2]} 14... Ne2+ {[%clk 0:02:15.7]} 15. Kh1 {[%clk 0:03:48.7]}
15... Rxd7 {[%clk 0:02:10.1]} 16. Na3 {[%clk 0:03:11.6]} 16... Nxf4 {[%clk
0:01:56.1]} 17. Rxf4 {[%clk 0:03:09.7]} 17... Rd1+ {[%clk 0:01:47.8]} 18. Rxd1
{[%clk 0:03:07.5]} 18... Bxd1 {[%clk 0:01:47]} 19. Rxf7 {[%clk 0:02:57.2]} 19...
g6 {[%clk 0:01:40.4]} 20. e6 {[%clk 0:02:54.1]} 20... Ba4 {[%clk 0:01:34.5]} 21.
e7 {[%clk 0:02:28.2]} 21... Bh6 {[%clk 0:01:27.9]} 22. Ne6 {[%clk 0:02:24.7]}
22... Rc8 {[%clk 0:01:15.8]} 23. Nc4 {[%clk 0:01:54.8]} 23... a6 {[%clk
0:01:14]} 24. Ne5 {[%clk 0:01:52.3]} 24... g5 {[%clk 0:01:10]} 25. Ng4 {[%clk
0:01:45.1]} 25... e3 {[%clk 0:00:50.7]} 26. Nd4 {[%clk 0:01:31]} 26... e2 {[%clk
0:00:43.3]} 27. Nxe2 {[%clk 0:01:29.3]} 27... Bd1 {[%clk 0:00:41]} 28. Nxh6
{[%clk 0:01:28.4]} 28... Bxe2 {[%clk 0:00:38.5]} 29. Rf8 {[%clk 0:01:27.5]}
29... Bb5 {[%clk 0:00:32.4]} 30. Rg8 {[%clk 0:01:10.7]} 30... Be8 {[%clk
0:00:20.6]} 31. Rxg5 {[%clk 0:01:06.9]} 31... Bc6 {[%clk 0:00:14.1]} 32. Nf5
{[%clk 0:01:05]} 32... Re8 {[%clk 0:00:10.9]} 33. Rh5 {[%clk 0:00:59.9]} 33...
Bxg2+ {[%clk 0:00:08.1]} 34. Kxg2 {[%clk 0:00:58.5]} 34... Rg8+ {[%clk
0:00:06.6]} 35. Kf3 {[%clk 0:00:56.3]} 35... Re8 {[%clk 0:00:04.8]} 36. Rxh4
{[%clk 0:00:54.7]} 1-0

[Event "Live Chess"]
[Site "Chess.com"]
[Date "2023.05.20"]
[Round "-"]
[White "Daniel_Gliddon_FA"]
[Black "chessleanstrategist"]
[Result "1/2-1/2"]
[WhiteElo "1221"]
[BlackElo "400"]
[TimeControl "300"]
[EndTime "11:05:21 PDT"]
[Termination "Game drawn by repetition"]

1. e4 {[%clk 0:04:56.7]} 1... d6 {[%clk 0:04:57.9]} 2. d4 {[%clk 0:04:55.4]}
2... Nf6 {[%clk 0:04:56]} 3. Nc3 {[%clk 0:04:51.8]} 3... g6 {[%clk 0:04:55]} 4.
f4 {[%clk 0:04:50.5]} 4... Bg7 {[%clk 0:04:53.3]} 5. e5 {[%clk 0:04:49.4]} 5...
Nfd7 {[%clk 0:04:48.6]} 6. Nf3 {[%clk 0:04:46.3]} 6... dxe5 {[%clk 0:04:43.3]}
7. fxe5 {[%clk 0:04:44.8]} 7... e6 {[%clk 0:04:38.3]} 8. Bc4 {[%clk 0:04:42.1]}
8... O-O {[%clk 0:04:36.5]} 9. h4 {[%clk 0:04:37.4]} 9... f5 {[%clk 0:04:15.4]}
10. h5 {[%clk 0:04:23.1]} 10... h6 {[%clk 0:03:41.4]} 11. hxg6 {[%clk
0:04:18.8]} 11... c6 {[%clk 0:03:24.6]} 12. Bxh6 {[%clk 0:04:14.4]} 12... Bxh6
{[%clk 0:03:19.4]} 13. Rxh6 {[%clk 0:04:10.2]} 13... Kg7 {[%clk 0:03:09]} 14.
Qd2 {[%clk 0:04:06.5]} 14... Rh8 {[%clk 0:03:03.7]} 15. Rh7+ {[%clk 0:03:58.3]}
15... Rxh7 {[%clk 0:03:02.2]} 16. gxh7 {[%clk 0:03:57.1]} 16... Kxh7 {[%clk
0:03:01.5]} 17. O-O-O {[%clk 0:03:53.1]} 17... Qg8 {[%clk 0:02:48.9]} 18. Rh1+
{[%clk 0:03:48.6]} 18... Kg7 {[%clk 0:02:47.6]} 19. Ng5 {[%clk 0:03:41.7]} 19...
Nf8 {[%clk 0:02:40]} 20. Rh7+ {[%clk 0:03:23.5]} 20... Nxh7 {[%clk 0:02:37.4]}
21. Nxh7 {[%clk 0:03:18.8]} 21... Qxh7 {[%clk 0:02:34.4]} 22. Qg5+ {[%clk
0:03:17.3]} 22... Qg6 {[%clk 0:02:32.7]} 23. Qe7+ {[%clk 0:03:13.2]} 23... Qf7
{[%clk 0:02:30.5]} 24. Qg5+ {[%clk 0:03:11.6]} 24... Qg6 {[%clk 0:02:29.6]} 25.
Qe7+ {[%clk 0:02:53.1]} 25... Qf7 {[%clk 0:02:27.7]} 26. Qg5+ {[%clk 0:02:51.6]}
26... Qg6 {[%clk 0:02:26.7]} 1/2-1/2

[Event "Live Chess"]
[Site "Chess.com"]
[Date "2023.05.20"]
[Round "-"]
[White "bristolunichess"]
[Black "aliciabutteriss"]
[Result "1-0"]
[WhiteElo "1814"]
[BlackElo "542"]
[TimeControl "300"]
[EndTime "11:05:23 PDT"]
[Termination "bristolunichess won on time"]

1. d4 {[%clk 0:04:53.6]} 1... d5 {[%clk 0:04:58.4]} 2. c4 {[%clk 0:04:48]} 2...
Nf6 {[%clk 0:04:51.4]} 3. Nc3 {[%clk 0:04:26.2]} 3... Be6 {[%clk 0:04:44.7]} 4.
e3 {[%clk 0:04:14.2]} 4... g6 {[%clk 0:04:37.8]} 5. Nf3 {[%clk 0:04:07.8]} 5...
Bg7 {[%clk 0:04:35.4]} 6. Bd3 {[%clk 0:03:38.2]} 6... dxc4 {[%clk 0:04:29.3]} 7.
Bc2 {[%clk 0:03:30.3]} 7... Nd5 {[%clk 0:04:07.5]} 8. e4 {[%clk 0:03:22.1]} 8...
Nxc3 {[%clk 0:04:02.7]} 9. bxc3 {[%clk 0:03:19.3]} 9... O-O {[%clk 0:03:45.2]}
10. h3 {[%clk 0:03:01.5]} 10... Nc6 {[%clk 0:03:23.2]} 11. Bd2 {[%clk 0:02:33]}
11... Qd6 {[%clk 0:03:17.1]} 12. d5 {[%clk 0:02:13.6]} 12... Ne5 {[%clk
0:02:37.5]} 13. dxe6 {[%clk 0:02:08.6]} 13... Qxe6 {[%clk 0:02:31.1]} 14. Nd4
{[%clk 0:01:37.5]} 14... Qd6 {[%clk 0:02:21.4]} 15. f4 {[%clk 0:01:33.5]} 15...
Nf3+ {[%clk 0:02:00.6]} 16. gxf3 {[%clk 0:01:24.4]} 16... Rad8 {[%clk
0:01:55.5]} 17. e5 {[%clk 0:01:18.3]} 17... Qd5 {[%clk 0:01:47.8]} 18. Be4
{[%clk 0:01:05.8]} 18... Qc5 {[%clk 0:01:32.3]} 19. Rg1 {[%clk 0:00:54.3]} 19...
Qb6 {[%clk 0:01:04.7]} 20. Rb1 {[%clk 0:00:50.5]} 20... Qa5 {[%clk 0:00:51]} 21.
Rb5 {[%clk 0:00:46.1]} 21... Qxa2 {[%clk 0:00:46.3]} 22. Rxb7 {[%clk 0:00:39.9]}
22... f5 {[%clk 0:00:34.7]} 23. exf6 {[%clk 0:00:29.7]} 23... exf6 {[%clk
0:00:28.4]} 24. Ne6 {[%clk 0:00:20.7]} 24... Qa6 {[%clk 0:00:13.5]} 25. Nxd8
{[%clk 0:00:18]} 25... Rxd8 {[%clk 0:00:12.2]} 26. Rxc7 {[%clk 0:00:14.9]} 26...
Qb6 {[%clk 0:00:09.9]} 27. Bd5+ {[%clk 0:00:13.9]} 27... Kh8 {[%clk 0:00:07.2]}
28. Rf7 {[%clk 0:00:12.2]} 28... Rf8 {[%clk 0:00:04.8]} 29. Rxf8+ {[%clk
0:00:10.1]} 29... Bxf8 {[%clk 0:00:04.1]} 30. Rg2 {[%clk 0:00:06.4]} 30... Qb5
{[%clk 0:00:01.9]} 31. Qc2 {[%clk 0:00:05.1]} 31... Qxd5 {[%clk 0:00:00.6]} 32.
Re2 {[%clk 0:00:03.6]} 32... Qc6 {[%clk 0:00:00.1]} 33. Re8 {[%clk 0:00:02.1]}
1-0

[Event "Live Chess"]
[Site "Chess.com"]
[Date "2023.05.20"]
[Round "-"]
[White "Delacorta"]
[Black "misha464"]
[Result "1-0"]
[WhiteElo "1423"]
[BlackElo "759"]
[TimeControl "300"]
[EndTime "11:05:29 PDT"]
[Termination "Delacorta won by resignation"]

1. d4 {[%clk 0:04:58.9]} 1... d5 {[%clk 0:04:58.6]} 2. Nf3 {[%clk 0:04:57.9]}
2... Nc6 {[%clk 0:04:57.6]} 3. e3 {[%clk 0:04:57.1]} 3... Bg4 {[%clk 0:04:56.8]}
4. h3 {[%clk 0:04:54.8]} 4... Bxf3 {[%clk 0:04:56.3]} 5. Qxf3 {[%clk 0:04:53]}
5... Nf6 {[%clk 0:04:56.2]} 6. c4 {[%clk 0:04:50.3]} 6... dxc4 {[%clk
0:04:53.6]} 7. Bxc4 {[%clk 0:04:49.2]} 7... e6 {[%clk 0:04:52.8]} 8. Nc3 {[%clk
0:04:46.2]} 8... Bb4 {[%clk 0:04:47.1]} 9. a3 {[%clk 0:04:43.8]} 9... Bxc3+
{[%clk 0:04:45.4]} 10. bxc3 {[%clk 0:04:43]} 10... O-O {[%clk 0:04:44.9]} 11.
O-O {[%clk 0:04:33.8]} 11... Ne7 {[%clk 0:04:44.2]} 12. e4 {[%clk 0:04:27]}
12... Qd7 {[%clk 0:04:36.5]} 13. Bg5 {[%clk 0:04:23.8]} 13... Qc6 {[%clk
0:04:32.6]} 14. Ba2 {[%clk 0:04:15.4]} 14... Rae8 {[%clk 0:04:27.1]} 15. Bxf6
{[%clk 0:04:12.6]} 15... gxf6 {[%clk 0:04:26]} 16. Qxf6 {[%clk 0:04:03.5]} 16...
Qxc3 {[%clk 0:04:24.5]} 17. Rfc1 {[%clk 0:03:40.7]} 17... Qxa3 {[%clk
0:04:17.7]} 18. Bxe6 {[%clk 0:02:55.1]} 18... fxe6 {[%clk 0:04:12.5]} 19. Qg5+
{[%clk 0:02:53.9]} 19... Kh8 {[%clk 0:04:07.9]} 20. Rxa3 {[%clk 0:02:51.7]} 1-0

[Event "Live Chess"]
[Site "Chess.com"]
[Date "2023.05.20"]
[Round "-"]
[White "NAZRIZ1977"]
[Black "Tilbs_12"]
[Result "1-0"]
[WhiteElo "2152"]
[BlackElo "1575"]
[TimeControl "300"]
[EndTime "11:05:40 PDT"]
[Termination "NAZRIZ1977 won by resignation"]

1. c4 {[%clk 0:04:57.4]} 1... c5 {[%clk 0:04:57.1]} 2. g3 {[%clk 0:04:57]} 2...
Nc6 {[%clk 0:04:55.4]} 3. Bg2 {[%clk 0:04:56.7]} 3... g6 {[%clk 0:04:55]} 4. Nf3
{[%clk 0:04:56.2]} 4... Bg7 {[%clk 0:04:53.9]} 5. O-O {[%clk 0:04:55.8]} 5...
Nf6 {[%clk 0:04:53.5]} 6. Nc3 {[%clk 0:04:55.4]} 6... O-O {[%clk 0:04:52.8]} 7.
d3 {[%clk 0:04:54.9]} 7... d6 {[%clk 0:04:51.2]} 8. a3 {[%clk 0:04:53.6]} 8...
e5 {[%clk 0:04:49.6]} 9. Bg5 {[%clk 0:04:52.4]} 9... h6 {[%clk 0:04:46.2]} 10.
Bxf6 {[%clk 0:04:51.6]} 10... Bxf6 {[%clk 0:04:40.5]} 11. Rb1 {[%clk 0:04:51.5]}
11... a6 {[%clk 0:04:38.6]} 12. b4 {[%clk 0:04:49.9]} 12... b6 {[%clk
0:04:28.4]} 13. bxc5 {[%clk 0:04:41.1]} 13... bxc5 {[%clk 0:04:26.8]} 14. Nd2
{[%clk 0:04:39.1]} 14... Bd7 {[%clk 0:04:22.1]} 15. Nd5 {[%clk 0:04:37.9]} 15...
Bg7 {[%clk 0:04:18.6]} 16. Nb6 {[%clk 0:04:37.1]} 16... Ra7 {[%clk 0:04:02.4]}
17. Nxd7 {[%clk 0:04:36.1]} 17... Qxd7 {[%clk 0:04:01.4]} 18. Ne4 {[%clk
0:04:34.9]} 18... Nd4 {[%clk 0:03:51.5]} 19. e3 {[%clk 0:04:32.5]} 19... Ne6
{[%clk 0:03:48.2]} 20. Nc3 {[%clk 0:04:32]} 20... Rb7 {[%clk 0:03:44]} 21. Rxb7
{[%clk 0:04:24]} 21... Qxb7 {[%clk 0:03:42.8]} 22. Bxb7 {[%clk 0:04:22.5]} 1-0

[Event "Live Chess"]
[Site "Chess.com"]
[Date "2023.05.20"]
[Round "-"]
[White "ViktorTheCoolBoy"]
[Black "MarkLim1"]
[Result "1-0"]
[WhiteElo "2543"]
[BlackElo "1611"]
[TimeControl "300"]
[EndTime "11:05:51 PDT"]
[Termination "ViktorTheCoolBoy won by resignation"]

1. e4 {[%clk 0:04:57.9]} 1... e6 {[%clk 0:04:58.4]} 2. d3 {[%clk 0:04:54.5]}
2... c5 {[%clk 0:04:57.4]} 3. g3 {[%clk 0:04:52.5]} 3... Nc6 {[%clk 0:04:56.6]}
4. Bg2 {[%clk 0:04:51.9]} 4... Nf6 {[%clk 0:04:56.2]} 5. Nf3 {[%clk 0:04:51.5]}
5... Be7 {[%clk 0:04:54.9]} 6. O-O {[%clk 0:04:50.7]} 6... O-O {[%clk
0:04:54.3]} 7. Qe2 {[%clk 0:04:44.7]} 7... d5 {[%clk 0:04:52]} 8. Re1 {[%clk
0:04:40.6]} 8... b5 {[%clk 0:04:49.7]} 9. e5 {[%clk 0:04:37.4]} 9... Ne8 {[%clk
0:04:48.6]} 10. h4 {[%clk 0:04:36.3]} 10... a5 {[%clk 0:04:47.7]} 11. Nbd2
{[%clk 0:04:33.3]} 11... b4 {[%clk 0:04:47.2]} 12. Nf1 {[%clk 0:04:31.9]} 12...
a4 {[%clk 0:04:45.9]} 13. a3 {[%clk 0:04:31.3]} 13... bxa3 {[%clk 0:04:41.3]}
14. bxa3 {[%clk 0:04:31.2]} 14... Ba6 {[%clk 0:04:39.9]} 15. N1h2 {[%clk
0:04:27.6]} 15... c4 {[%clk 0:04:39.1]} 16. d4 {[%clk 0:04:17.1]} 16... c3
{[%clk 0:04:22.7]} 17. Qe3 {[%clk 0:04:14.7]} 17... Qa5 {[%clk 0:04:18.9]} 18.
Ng4 {[%clk 0:04:07.3]} 18... Nc7 {[%clk 0:04:11.3]} 19. h5 {[%clk 0:04:03.2]}
19... Nb5 {[%clk 0:04:02.3]} 20. h6 {[%clk 0:03:59.1]} 20... g6 {[%clk
0:04:01.3]} 21. Qf4 {[%clk 0:03:56.2]} 21... Qb6 {[%clk 0:03:53.8]} 22. Nf6+
{[%clk 0:03:46.2]} 22... Kh8 {[%clk 0:03:52.2]} 23. Nd7 {[%clk 0:03:45.5]} 23...
Qa7 {[%clk 0:03:45.8]} 24. Nxf8 {[%clk 0:03:44]} 24... Rxf8 {[%clk 0:03:44.7]}
25. Ng5 {[%clk 0:03:39.2]} 25... Nbxd4 {[%clk 0:03:25.7]} 26. Be3 {[%clk
0:03:32.5]} 26... Bc5 {[%clk 0:03:20.9]} 27. Qf6+ {[%clk 0:03:29.8]} 1-0